lending/lending_fUSD_20241014
["ID","MTS","AMOUNT","RATE_DAILY","PERIOD"]
[340246280,1728915047361,-157.182502,0.00015763,2]
[340246281,1728915047370,-197.488874,0.00015763,2]
[340246282,1728915047379,-197.488874,0.00015763,2]
[340246283,1728915047388,-250.10175,0.00015763,2]
[340246284,1728915047397,-250.10175,0.00015763,2]
[340246285,1728915047407,-151.0,0.00015763,2]
[340246286,1728915047416,-151.0,0.00015763,2]
[340246287,1728915047425,-156.572315,0.00015763,2]
[340246288,1728915047433,-6982.194006,0.00015763,2]
[340246289,1728915047443,-151.0,0.00015763,2]
[340246290,1728915047452,-151.0,0.00015763,2]
[340246291,1728915047460,-900.419842,0.00015763,2]
[340246292,1728915047471,-900.419842,0.00015763,2]
[340246293,1728915047480,-151.0,0.00015763,2]
[340246294,1728915047489,-159.401372,0.00015763,2]
[340246295,1728915047498,-210.833849,0.00015763,2]
[340246296,1728915047508,-440.804491,0.00015763,2]
[340246297,1728915047517,-210.833849,0.00015763,2]
[340246298,1728915047526,-440.804491,0.00015763,2]
[340246299,1728915047535,-1129.573951,0.00015763,2]
[340246300,1728915047544,-314.196569,0.00015763,2]
[340246301,1728915047553,-1129.573951,0.00015763,2]
[340246302,1728915047563,-314.196569,0.00015763,2]
[340246303,1728915047571,-580.939491,0.00015763,2]
[340246304,1728915047581,-580.939491,0.00015763,2]
[340246305,1728915047590,-151.0,0.00015763,2]
[340246306,1728915047599,-258.525234,0.00015763,2]
[340246307,1728915047608,-258.525234,0.00015763,2]
[340246308,1728915047617,-580.939491,0.00015763,2]
[340246309,1728915047627,-580.939491,0.00015763,2]
[340246310,1728915047636,-204.172561,0.00015763,2]
[340246311,1728915047646,-204.172561,0.00015763,2]
[340246312,1728915047655,-151.0,0.00015763,2]
[340246313,1728915047727,-258.525234,0.00015763,2]
[340246314,1728915047738,-258.525234,0.00015763,2]
[340246315,1728915047747,-204.172561,0.00015763,2]
[340246316,1728915047756,-204.172561,0.00015763,2]
[340246317,1728915047765,-213.979658,0.00015763,2]
[340246318,1728915047774,-3435.628407,0.00015763,2]
[340246319,1728915047783,-3435.628407,0.00015763,2]
[340246320,1728915047792,-3435.628407,0.00015763,2]
[340246321,1728915047801,-3435.628407,0.00015763,2]
[340246322,1728915047810,-151.0,0.00015763,2]
[340246323,1728915047819,-151.0,0.00015763,2]
[340246324,1728915047828,-254.897816,0.00015763,2]
[340246325,1728915047837,-254.897816,0.00015763,2]
[340246326,1728915047846,-254.897816,0.00015763,2]
[340246327,1728915047857,-254.897816,0.00015763,2]
[340246328,1728915047868,-1136.935222,0.00015763,2]
[340246329,1728915047877,-1136.935222,0.00015763,2]
[340246330,1728915047886,-436.085427,0.00015763,2]
[340246331,1728915047895,-436.085427,0.00015763,2]
[340246332,1728915047905,-436.085427,0.00015763,2]
[340246333,1728915047914,-436.085427,0.00015763,2]
[340246334,1728915047923,-2028.055498,0.00015763,2]
[340246335,1728915047932,-2028.055498,0.00015763,2]
[340246336,1728915047941,-241.736193,0.00015763,2]
[340246337,1728915047951,-151.0,0.00015763,2]
[340246338,1728915047960,-241.736193,0.00015763,2]
[340246339,1728915047970,-428.873345,0.00015763,2]
[340246340,1728915047979,-428.873345,0.00015763,2]
[340246341,1728915047988,-428.873345,0.00015763,2]
[340246342,1728915047997,-428.873345,0.00015763,2]
[340246343,1728915048006,-151.0,0.00015763,2]
[340246344,1728915048015,-151.0,0.00015763,2]
[340246345,1728915048024,-194.98427,0.00015763,2]
[340246346,1728915048034,-157.620499,0.00015763,2]
[340246347,1728915048043,-194.98427,0.00015763,2]
[340246348,1728915048052,-157.620499,0.00015763,2]
[340246349,1728915048062,-151.0,0.00015763,2]
[340246350,1728915048071,-159.885347,0.00015763,2]
[340246351,1728915048081,-159.885347,0.00015763,2]
[340246352,1728915048090,-158.679006,0.00015763,2]
[340246353,1728915048098,-158.679006,0.00015763,2]
[340246354,1728915048107,-158.679006,0.00015763,2]
[340246355,1728915048117,-158.679006,0.00015763,2]
[340246356,1728915048126,-151.0,0.00015763,2]
[340246357,1728915048135,-761.956052,0.00015763,2]
[340246358,1728915048144,-452.354,0.00015763,2]
[340246359,1728915048154,-812.0,0.00015763,2]
[340246360,1728915048163,-560.0,0.00015763,2]
[340246361,1728915048172,-1244.0,0.00015763,2]
[340246362,1728915048181,-555.0,0.00015763,2]
[340246363,1728915048190,-150.0,0.00015763,2]
[340246364,1728915048200,-935.0,0.00015763,2]
[340246365,1728915048209,-1908.0,0.00015763,2]
[340246366,1728915048218,-3356.0,0.00015763,2]
[340246367,1728915048228,-808.0,0.00015763,2]
[340246368,1728915048238,-236.47,0.00015817,2]
[340246369,1728915048247,-151.0,0.00015847,2]
[340246370,1728915048256,-151.0,0.0001589,2]
[340246371,1728915048265,-151.0,0.0001589,2]
[340246372,1728915048274,-151.0,0.0001589,2]
[340246373,1728915048284,-150.0,0.00015918,2]
[340246374,1728915048293,-359.17,0.00015918,2]
[340246375,1728915048302,-429.55,0.00015918,2]
[340246376,1728915048311,-150.0,0.00015918,2]
[340246377,1728915048320,-150.0,0.00015918,2]
[340246378,1728915048329,-150.0,0.00015918,2]
[340246379,1728915048339,-150.0,0.00015918,2]
[340246380,1728915048348,-150.0,0.00015918,2]
[340246381,1728915048357,-534.7,0.00015918,2]
[340246382,1728915048366,-302.53,0.00015918,2]
[340246383,1728915048375,-358.806051,0.00016,2]
[340246384,1728915048385,-358.806051,0.00016,2]
[340246385,1728915048395,-185.268848,0.00016,2]
[340246386,1728915048405,-185.268848,0.00016,2]
[340246387,1728915048414,-151.0,0.00016,2]
[340246388,1728915048424,-151.0,0.00016,2]
[340246389,1728915048434,-231.021145,0.00016,2]
[340246390,1728915048443,-151.0,0.00016,2]
[340246391,1728915048452,-151.0,0.00016,2]
[340246392,1728915048462,-151.0,0.00016,2]
[340246393,1728915048472,-151.0,0.00016,2]
[340246394,1728915048482,-151.0,0.00016,2]
[340246395,1728915048491,-568.473388,0.00016,2]
[340246396,1728915048500,-568.473388,0.00016,2]
[340246397,1728915048510,-151.0,0.00016,2]
[340246398,1728915048519,-151.0,0.00016,2]
[340246399,1728915048528,-2764.15205,0.00016,2]
[340246400,1728915048538,-2764.15205,0.00016,2]
[340246401,1728915048551,-151.0,0.00016,2]
[340246402,1728915048560,-151.0,0.00016,2]
[340246403,1728915048570,-151.0,0.00016,2]
[340246404,1728915048579,-411.134264,0.00016,2]
[340246405,1728915048589,-151.0,0.00016,2]
[340246406,1728915048599,-151.0,0.00016,2]
[340246407,1728915048608,-151.0,0.00016,2]
[340246408,1728915048617,-269.879334,0.00016,2]
[340246409,1728915048626,-199.598128,0.00016,2]
[340246410,1728915048636,-199.598128,0.00016,2]
[340246411,1728915048647,-151.0,0.00016,2]
[340246412,1728915048656,-151.0,0.00016,2]
[340246413,1728915048666,-151.0,0.00016,2]
[340246414,1728915048675,-151.0,0.00016,2]
[340246415,1728915048685,-276.748108,0.00016,2]
[340246416,1728915048694,-204.57378,0.00016,2]
[340246417,1728915048703,-296.512666,0.00016,2]
[340246418,1728915048712,-151.0,0.00016,2]
[340246419,1728915048722,-289.256455,0.00016,2]
[340246420,1728915048732,-178.66769,0.00016,2]
[340246421,1728915048741,-178.66769,0.00016,2]
[340246422,1728915048751,-151.0,0.00016,2]
[340246423,1728915048829,-155.527469,0.00016,2]
[340246424,1728915048838,-197.697859,0.00016,2]
[340246425,1728915048848,-197.697859,0.00016,2]
[340246426,1728915048860,-151.0,0.00016,2]
[340246427,1728915048869,-730.29271,0.00016,2]
[340246428,1728915048878,-151.0,0.00016,2]
[340246429,1728915048888,-222.769299,0.00016,2]
[340246430,1728915048897,-222.769299,0.00016,2]
[340246431,1728915048907,-648.501164,0.00016,2]
[340246432,1728915048916,-648.501164,0.00016,2]
[340246433,1728915048926,-530.00401,0.00016,2]
[340246434,1728915048935,-218.37,0.00016,2]
[340246435,1728915048946,-218.37,0.00016,2]
[340246436,1728915048956,-530.00401,0.00016,2]
[340246437,1728915048965,-202.54179,0.00016,2]
[340246438,1728915048975,-202.54179,0.00016,2]
[340246439,1728915048985,-151.0,0.00016,2]
[340246440,1728915048994,-330.218464,0.00016,2]
[340246441,1728915049003,-330.218464,0.00016,2]
[340246442,1728915049013,-151.0,0.00016,2]
[340246443,1728915049022,-151.0,0.00016,2]
[340246444,1728915049031,-198.000305,0.00016,2]
[340246445,1728915049040,-179.562756,0.00016,2]
[340246446,1728915049049,-179.562756,0.00016,2]
[340246447,1728915049059,-510.659858,0.00016,2]
[340246448,1728915049068,-510.659858,0.00016,2]
[340246449,1728915049077,-151.0,0.00016,2]
[340246450,1728915049086,-263.294243,0.00016,2]
[340246451,1728915049095,-263.294243,0.00016,2]
[340246452,1728915049105,-157.182502,0.00016,2]
[340246453,1728915049114,-157.182502,0.00016,2]
[340246454,1728915049123,-197.488874,0.00016,2]
[340246455,1728915049132,-197.488874,0.00016,2]
[340246456,1728915049142,-250.10175,0.00016,2]
[340246457,1728915049151,-250.10175,0.00016,2]
[340246458,1728915049160,-155.936225,0.00016,2]
[340246459,1728915049170,-151.0,0.00016,2]
[340246460,1728915049179,-6982.194006,0.00016,2]
[340246461,1728915049188,-151.0,0.00016,2]
[340246462,1728915049197,-151.0,0.00016,2]
[340246463,1728915049207,-900.419842,0.00016,2]
[340246464,1728915049216,-900.419842,0.00016,2]
[340246465,1728915049226,-210.833849,0.00016,2]
[340246466,1728915049236,-440.804491,0.00016,2]
[340246467,1728915049245,-210.833849,0.00016,2]
[340246468,1728915049255,-440.804491,0.00016,2]
[340246469,1728915049265,-1129.573951,0.00016,2]
[340246470,1728915049274,-314.196569,0.00016,2]
[340246471,1728915049283,-1129.573951,0.00016,2]
[340246472,1728915049293,-314.196569,0.00016,2]
[340246473,1728915049302,-580.939491,0.00016,2]
[340246474,1728915049312,-219.472569,0.00016,2]
[340246475,1728915049321,-258.525234,0.00016,2]
[340246476,1728915049331,-580.939491,0.00016,2]
[340246477,1728915049341,-204.172561,0.00016,2]
[340246478,1728915049350,-151.0,0.00016,2]
[340246479,1728915049360,-258.525234,0.00016,2]
[340246480,1728915049369,-204.172561,0.00016,2]
[340246481,1728915049379,-700.0,0.00016,2]
[340246482,1728915049389,-3435.628407,0.00016,2]
[340246483,1728915049398,-3435.628407,0.00016,2]
[340246484,1728915049408,-151.0,0.00016,2]
[340246485,1728915049417,-254.897816,0.00016,2]
[340246486,1728915049427,-254.897816,0.00016,2]
[340246487,1728915049436,-1136.935222,0.00016,2]
[340246488,1728915049445,-1136.935222,0.00016,2]
[340246489,1728915049455,-436.085427,0.00016,2]
[340246490,1728915049464,-436.085427,0.00016,2]
[340246491,1728915049475,-2028.055498,0.00016,2]
[340246492,1728915049484,-2028.055498,0.00016,2]
[340246493,1728915049493,-241.736193,0.00016,2]
[340246494,1728915049503,-151.0,0.00016,2]
[340246495,1728915049512,-241.736193,0.00016,2]
[340246496,1728915049521,-428.873345,0.00016,2]
[340246497,1728915049531,-428.873345,0.00016,2]
[340246498,1728915049540,-151.0,0.00016,2]
[340246499,1728915049550,-194.98427,0.00016,2]
[340246500,1728915049559,-157.620499,0.00016,2]
[340246501,1728915049570,-194.98427,0.00016,2]
[340246502,1728915049579,-157.620499,0.00016,2]
[340246503,1728915049588,-151.0,0.00016,2]
[340246504,1728915049597,-159.885347,0.00016,2]
[340246505,1728915049607,-159.885347,0.00016,2]
[340246506,1728915049616,-158.679006,0.00016,2]
[340246507,1728915049627,-158.679006,0.00016,2]
[340246508,1728915049636,-151.0,0.00016,2]
[340246509,1728915049646,-157.182502,0.00016011,2]
[340246510,1728915049655,-157.182502,0.00016011,2]
[340246511,1728915049665,-250.10175,0.00016011,2]
[340246512,1728915049674,-250.10175,0.00016011,2]
[340246513,1728915049684,-1354.9564213,0.00016011,2]
[340246514,1728915049693,-151.0,0.00016047,2]
[340246515,1728915049703,-151.0,0.00016047,2]
[340246516,1728915049712,-151.0,0.00016047,2]
[340246517,1728915049723,-6982.194006,0.00016047,2]
[340246518,1728915049734,-151.0,0.00016047,2]
[340246519,1728915049743,-1129.573951,0.00016047,2]
[340246520,1728915049752,-1129.573951,0.00016047,2]
[340246521,1728915049761,-194.98427,0.00016047,2]
[340246522,1728915049770,-157.620499,0.00016047,2]
[340246523,1728915049838,-194.98427,0.00016047,2]
[340246524,1728915049848,-157.620499,0.00016047,2]
[340246525,1728915049858,-151.0,0.00016047,2]
[340246526,1728915049868,-151.0,0.00016057,2]
[340246527,1728915049878,-151.0,0.00016057,2]
[340246528,1728915049887,-151.0,0.00016057,2]
[340246529,1728915049896,-151.0,0.00016067,2]
[340246530,1728915049906,-358.806051,0.00016067,2]
[340246531,1728915049916,-358.806051,0.00016067,2]
[340246532,1728915049925,-185.268848,0.00016067,2]
[340246533,1728915049935,-185.268848,0.00016067,2]
[340246534,1728915049945,-156.209699,0.00016067,2]
[340246535,1728915049954,-151.0,0.00016067,2]
[340246536,1728915049963,-151.0,0.00016067,2]
[340246537,1728915049974,-151.0,0.00016067,2]
[340246538,1728915049983,-151.0,0.00016067,2]
[340246539,1728915049992,-151.0,0.00016067,2]
[340246540,1728915050001,-151.0,0.00016067,2]
[340246541,1728915050011,-151.0,0.00016067,2]
[340246542,1728915050020,-151.0,0.00016067,2]
[340246543,1728915050029,-151.0,0.00016067,2]
[340246544,1728915050038,-151.0,0.00016067,2]
[340246545,1728915050047,-568.473388,0.00016067,2]
[340246546,1728915050056,-568.473388,0.00016067,2]
[340246547,1728915050065,-151.0,0.00016067,2]
[340246548,1728915050074,-151.0,0.00016067,2]
[340246549,1728915050083,-2764.15205,0.00016067,2]
[340246550,1728915050093,-2764.15205,0.00016067,2]
[340246551,1728915050103,-151.0,0.00016067,2]
[340246552,1728915050112,-151.0,0.00016067,2]
[340246553,1728915050121,-151.0,0.00016067,2]
[340246554,1728915050131,-411.134264,0.00016067,2]
[340246555,1728915050140,-151.0,0.00016067,2]
[340246556,1728915050150,-151.0,0.00016067,2]
[340246557,1728915050159,-151.0,0.00016067,2]
[340246558,1728915050168,-199.598128,0.00016067,2]
[340246559,1728915050178,-199.598128,0.00016067,2]
[340246560,1728915050187,-151.0,0.00016067,2]
[340246561,1728915050196,-151.0,0.00016067,2]
[340246562,1728915050206,-151.0,0.00016067,2]
[340246563,1728915050215,-151.0,0.00016067,2]
[340246564,1728915050226,-296.512666,0.00016067,2]
[340246565,1728915050235,-151.0,0.00016067,2]
[340246566,1728915050245,-178.66769,0.00016067,2]
[340246567,1728915050254,-178.66769,0.00016067,2]
[340246568,1728915050264,-158.331615,0.00016067,2]
[340246569,1728915050279,-197.697859,0.00016067,2]
[340246570,1728915050298,-197.697859,0.00016067,2]
[340246571,1728915050314,-287.12112,0.00016067,2]
[340246572,1728915050333,-730.29271,0.00016067,2]
[340246573,1728915050353,-151.0,0.00016067,2]
[340246574,1728915050369,-222.769299,0.00016067,2]
[340246575,1728915050387,-222.769299,0.00016067,2]
[340246576,1728915050402,-648.501164,0.00016067,2]
[340246577,1728915050418,-648.501164,0.00016067,2]
[340246578,1728915050437,-530.00401,0.00016067,2]
[340246579,1728915050456,-218.37,0.00016067,2]
[340246580,1728915050469,-218.37,0.00016067,2]
[340246581,1728915050487,-530.00401,0.00016067,2]
[340246582,1728915050503,-202.54179,0.00016067,2]
[340246583,1728915050518,-202.54179,0.00016067,2]
[340246584,1728915050532,-151.0,0.00016067,2]
[340246585,1728915050546,-330.218464,0.00016067,2]
[340246586,1728915050561,-330.218464,0.00016067,2]
[340246587,1728915050576,-151.0,0.00016067,2]
[340246588,1728915050590,-151.0,0.00016067,2]
[340246589,1728915050604,-179.562756,0.00016067,2]
[340246590,1728915050619,-179.562756,0.00016067,2]
[340246591,1728915050634,-510.659858,0.00016067,2]
[340246592,1728915050649,-510.659858,0.00016067,2]
[340246593,1728915050665,-193.690458,0.00016067,2]
[340246594,1728915050679,-263.294243,0.00016067,2]
[340246595,1728915050695,-263.294243,0.00016067,2]
[340246596,1728915050711,-157.182502,0.00016067,2]
[340246597,1728915050725,-157.182502,0.00016067,2]
[340246598,1728915050739,-197.488874,0.00016067,2]
[340246599,1728915050754,-197.488874,0.00016067,2]
[340246600,1728915050768,-250.10175,0.00016067,2]
[340246601,1728915050783,-250.10175,0.00016067,2]
[340246602,1728915050798,-151.0,0.00016067,2]
[340246603,1728915050813,-6982.194006,0.00016067,2]
[340246604,1728915050827,-151.0,0.00016067,2]
[340246605,1728915050842,-151.0,0.00016067,2]
[340246606,1728915050857,-900.419842,0.00016067,2]
[340246607,1728915050874,-900.419842,0.00016067,2]
[340246608,1728915050888,-210.833849,0.00016067,2]
[340246609,1728915050903,-440.804491,0.00016067,2]
[340246610,1728915050918,-210.833849,0.00016067,2]
[340246611,1728915050933,-440.804491,0.00016067,2]
[340246612,1728915050949,-1129.573951,0.00016067,2]
[340246613,1728915050964,-314.196569,0.00016067,2]
[340246614,1728915050981,-1129.573951,0.00016067,2]
[340246615,1728915050996,-314.196569,0.00016067,2]
[340246616,1728915051113,-580.939491,0.00016067,2]
[340246617,1728915051123,-258.525234,0.00016067,2]
[340246618,1728915051133,-204.172561,0.00016067,2]
[340246619,1728915051142,-580.939491,0.00016067,2]
[340246620,1728915051152,-151.0,0.00016067,2]
[340246621,1728915051161,-258.525234,0.00016067,2]
[340246622,1728915051170,-204.172561,0.00016067,2]
[340246623,1728915051180,-3435.628407,0.00016067,2]
[340246624,1728915051190,-3435.628407,0.00016067,2]
[340246625,1728915051199,-151.0,0.00016067,2]
[340246626,1728915051210,-254.897816,0.00016067,2]
[340246627,1728915051220,-254.897816,0.00016067,2]
[340246628,1728915051231,-1136.935222,0.00016067,2]
[340246629,1728915051241,-1136.935222,0.00016067,2]
[340246630,1728915051251,-436.085427,0.00016067,2]
[340246631,1728915051261,-436.085427,0.00016067,2]
[340246632,1728915051271,-2028.055498,0.00016067,2]
[340246633,1728915051280,-2028.055498,0.00016067,2]
[340246634,1728915051290,-151.0,0.00016067,2]
[340246635,1728915051300,-241.736193,0.00016067,2]
[340246636,1728915051310,-241.736193,0.00016067,2]
[340246637,1728915051319,-428.873345,0.00016067,2]
[340246638,1728915051329,-428.873345,0.00016067,2]
[340246639,1728915051339,-173.159997,0.00016067,2]
[340246640,1728915051348,-194.98427,0.00016067,2]
[340246641,1728915051358,-157.620499,0.00016067,2]
[340246642,1728915051368,-194.984275,0.00016067,2]
[340246643,1728915051378,-157.620495,0.00016067,2]
[340246644,1728915051387,-158.681517,0.00016067,2]
[340246645,1728915051397,-159.885347,0.00016067,2]
[340246646,1728915051406,-159.885347,0.00016067,2]
[340246647,1728915051416,-158.679006,0.00016067,2]
[340246648,1728915051425,-158.679012,0.00016067,2]
[340246649,1728915051435,-151.0,0.00016067,2]
[340246650,1728915051444,-151.0,0.00016438,2]
[340246651,1728915051454,-151.0,0.00016438,2]
[340246652,1728915051463,-151.0,0.00016438,2]
[340246653,1728915051474,-151.0,0.00016438,2]
[340246654,1728915051483,-151.0,0.00016438,2]
[340246655,1728915051492,-151.0,0.00016438,2]
[340246656,1728915051502,-151.0,0.00016438,2]
[340246657,1728915051511,-151.0,0.00016438,2]
[340246658,1728915051520,-151.0,0.00016438,2]
[340246659,1728915051530,-151.0,0.00016438,2]
[340246660,1728915051539,-151.0,0.00016438,2]
[340246661,1728915051549,-151.0,0.00016438,2]
[340246662,1728915051559,-151.451387,0.00016438,2]
[340246663,1728915051567,-161.17,0.00016438,2]
[340246664,1728915051577,-157.89,0.00016438,2]
[340246665,1728915051586,-163.44,0.00016712,2]
[340246666,1728915051597,-151.0,0.00016892,2]
[340246667,1728915051606,-358.806051,0.00016892,2]
[340246668,1728915051615,-358.806051,0.00016892,2]
[340246669,1728915051624,-185.268848,0.00016892,2]
[340246670,1728915051633,-185.268848,0.00016892,2]
[340246671,1728915051642,-151.0,0.00016892,2]
[340246672,1728915051652,-151.0,0.00016892,2]
[340246673,1728915051662,-158.416562,0.00016892,2]
[340246674,1728915051671,-151.0,0.00016892,2]
[340246675,1728915051680,-151.0,0.00016892,2]
[340246676,1728915051690,-151.0,0.00016892,2]
[340246677,1728915051699,-151.0,0.00016892,2]
[340246678,1728915051709,-151.0,0.00016892,2]
[340246679,1728915051719,-151.0,0.00016892,2]
[340246680,1728915051728,-204.172193,0.00016892,2]
[340246681,1728915051738,-568.473388,0.00016892,2]
[340246682,1728915051747,-568.473388,0.00016892,2]
[340246683,1728915051756,-151.0,0.00016892,2]
[340246684,1728915051766,-153.966464,0.00016892,2]
[340246685,1728915051775,-2764.15205,0.00016892,2]
[340246686,1728915051785,-2764.15205,0.00016892,2]
[340246687,1728915051794,-151.0,0.00016892,2]
[340246688,1728915051803,-151.0,0.00016892,2]
[340246689,1728915051813,-151.0,0.00016892,2]
[340246690,1728915051822,-411.134264,0.00016892,2]
[340246691,1728915051831,-151.0,0.00016892,2]
[340246692,1728915051841,-151.0,0.00016892,2]
[340246693,1728915051850,-151.0,0.00016892,2]
[340246694,1728915051863,-199.598128,0.00016892,2]
[340246695,1728915051873,-199.598128,0.00016892,2]
[340246696,1728915051882,-192.1666,0.00016892,2]
[340246697,1728915051892,-151.0,0.00016892,2]
[340246698,1728915051902,-151.0,0.00016892,2]
[340246699,1728915051911,-151.0,0.00016892,2]
[340246700,1728915051920,-589.803991,0.00016892,2]
[340246701,1728915051931,-296.512666,0.00016892,2]
[340246702,1728915051942,-151.0,0.00016892,2]
[340246703,1728915051952,-178.66769,0.00016892,2]
[340246704,1728915051961,-178.66769,0.00016892,2]
[340246705,1728915051972,-197.697859,0.00016892,2]
[340246706,1728915051981,-197.697859,0.00016892,2]
[340246707,1728915051990,-730.29271,0.00016892,2]
[340246708,1728915051999,-151.0,0.00016892,2]
[340246709,1728915052009,-222.769299,0.00016892,2]
[340246710,1728915052018,-222.769299,0.00016892,2]
[340246711,1728915052028,-648.501164,0.00016892,2]
[340246712,1728915052037,-648.501164,0.00016892,2]
[340246713,1728915052046,-530.00401,0.00016892,2]
[340246714,1728915052055,-218.37,0.00016892,2]
[340246715,1728915052064,-218.37,0.00016892,2]
[340246716,1728915052073,-530.00401,0.00016892,2]
[340246717,1728915052082,-202.54179,0.00016892,2]
[340246718,1728915052091,-202.54179,0.00016892,2]
[340246719,1728915052100,-151.0,0.00016892,2]
[340246720,1728915052108,-330.218464,0.00016892,2]
[340246721,1728915052117,-330.218464,0.00016892,2]
[340246722,1728915052126,-151.0,0.00016892,2]
[340246723,1728915052135,-211.477878,0.00016892,2]
[340246724,1728915052145,-179.562756,0.00016892,2]
[340246725,1728915052153,-179.562756,0.00016892,2]
[340246726,1728915052162,-510.659858,0.00016892,2]
[340246727,1728915052171,-510.659858,0.00016892,2]
[340246728,1728915052180,-151.0,0.00016892,2]
[340246729,1728915052189,-263.294243,0.00016892,2]
[340246730,1728915052198,-263.294243,0.00016892,2]
[340246731,1728915052207,-157.182502,0.00016892,2]
[340246732,1728915052216,-157.182502,0.00016892,2]
[340246733,1728915052226,-197.488874,0.00016892,2]
[340246734,1728915052236,-197.488874,0.00016892,2]
[340246735,1728915052245,-250.10175,0.00016892,2]
[340246736,1728915052255,-250.10175,0.00016892,2]
[340246737,1728915052264,-158.331456,0.00016892,2]
[340246738,1728915052273,-6982.194006,0.00016892,2]
[340246739,1728915052283,-151.0,0.00016892,2]
[340246740,1728915052293,-161.323031,0.00016892,2]
[340246741,1728915052302,-900.419842,0.00016892,2]
[340246742,1728915052311,-900.419842,0.00016892,2]
[340246743,1728915052321,-210.833849,0.00016892,2]
[340246744,1728915052331,-440.804491,0.00016892,2]
[340246745,1728915052340,-210.833849,0.00016892,2]
[340246746,1728915052350,-440.804491,0.00016892,2]
[340246747,1728915052359,-1129.573951,0.00016892,2]
[340246748,1728915052369,-314.196569,0.00016892,2]
[340246749,1728915052379,-1129.573951,0.00016892,2]
[340246750,1728915052388,-314.196569,0.00016892,2]
[340246751,1728915052398,-580.939491,0.00016892,2]
[340246752,1728915052476,-258.525234,0.00016892,2]
[340246753,1728915052486,-580.939488,0.00016892,2]
[340246754,1728915052496,-204.172561,0.00016892,2]
[340246755,1728915052506,-151.0,0.00016892,2]
[340246756,1728915052515,-258.525234,0.00016892,2]
[340246757,1728915052524,-204.172563,0.00016892,2]
[340246758,1728915052534,-3435.628407,0.00016892,2]
[340246759,1728915052543,-3435.628404,0.00016892,2]
[340246760,1728915052552,-151.0,0.00016892,2]
[340246761,1728915052562,-254.897816,0.00016892,2]
[340246762,1728915052571,-254.89781,0.00016892,2]
[340246763,1728915052580,-1136.935222,0.00016892,2]
[340246764,1728915052589,-1136.935213,0.00016892,2]
[340246765,1728915052598,-436.085427,0.00016892,2]
[340246766,1728915052607,-436.085418,0.00016892,2]
[340246767,1728915052616,-2028.055498,0.00016892,2]
[340246768,1728915052625,-2028.055494,0.00016892,2]
[340246769,1728915052635,-151.0,0.00016892,2]
[340246770,1728915052644,-241.736193,0.00016892,2]
[340246771,1728915052653,-241.736188,0.00016892,2]
[340246772,1728915052662,-428.873345,0.00016892,2]
[340246773,1728915052671,-428.873349,0.00016892,2]
[340246774,1728915052681,-159.885347,0.00016892,2]
[340246775,1728915052690,-159.885345,0.00016892,2]
[340246776,1728915052699,-151.0,0.00016922,2]
[340246777,1728915052709,-358.806051,0.00016922,2]
[340246778,1728915052717,-358.806051,0.00016922,2]
[340246779,1728915052726,-185.268848,0.00016922,2]